bitfinex-derivatives/quotes_BTCF0:USTF0_20230402
["timestamp","ask_amount","ask_price","bid_price","bid_amount"]
[1680453704385,0.003,28055.0,28054.0,0.06187012]
[1680453704582,0.003,28055.0,28054.0,0.16127012]
[1680453710392,0.17267645,28055.0,28054.0,0.11127012]
[1680453712290,0.003,28055.0,28054.0,0.11127012]
[1680453713293,0.21208249,28056.0,28054.0,0.11127012]
[1680453713596,0.21208249,28056.0,28055.0,0.0998]
[1680453713995,0.21208249,28056.0,28055.0,0.11373073]
[1680453714490,0.21508249,28056.0,28055.0,0.11373073]
[1680453716683,0.003,28056.0,28055.0,0.11373073]
[1680453718896,0.633126,28059.0,28055.0,0.11673073]
[1680453719090,0.633126,28059.0,28057.0,0.0998]
[1680453719596,0.633126,28059.0,28058.0,0.01392746]
[1680453719792,0.635126,28059.0,28058.0,0.01392746]
[1680453720799,0.63521277,28059.0,28058.0,0.01492746]
[1680453721994,0.4655202,28059.0,28058.0,0.01492746]
[1680453722194,0.67760269,28059.0,28058.0,0.07702746]
[1680453724198,0.4655202,28059.0,28058.0,0.07702746]
[1680453724597,0.72021473,28059.0,28058.0,0.07702746]
[1680453726404,0.72021473,28059.0,28058.0,0.0631]
[1680453727896,0.72021473,28059.0,28058.0,0.0633]
[1680453728197,0.72021473,28059.0,28058.0,0.07722261]
[1680453729802,0.41951473,28059.0,28058.0,0.07722261]
[1680453731102,0.31144411,28059.0,28058.0,0.13962261]
[1680453731305,0.26919355,28059.0,28058.0,0.13962261]
[1680453731501,0.26919355,28059.0,28058.0,0.18962261]
[1680453731806,0.35395974,28059.0,28058.0,0.18962261]
[1680453732407,0.35395974,28059.0,28058.0,0.49032261]
[1680453732800,0.05674958,28059.0,28058.0,0.49032261]
[1680453733500,0.256946,28059.0,28058.0,0.49032261]
[1680453734105,0.002,28059.0,28058.0,0.49032261]
[1680453734398,0.21440494,28059.0,28058.0,0.49032261]
[1680453736005,0.21440494,28059.0,28058.0,0.37802261]
[1680453736607,0.002,28059.0,28058.0,0.37802261]
[1680453737803,0.002,28059.0,28058.0,0.07732261]
[1680453738107,0.064,28059.0,28054.0,0.01010995]
[1680453738297,0.59799651,28056.0,28054.0,0.0622]
[1680453738502,0.59799651,28056.0,28055.0,0.0083128]
[1680453739311,0.51305277,28056.0,28055.0,0.0083128]
[1680453740009,0.21235277,28056.0,28055.0,0.0083128]
[1680453740211,0.21235277,28057.0,28054.0,0.0652]
[1680453740404,0.16990242,28055.0,28054.0,0.0622]
[1680453741712,0.16990242,28055.0,28054.0,0.0652]
[1680453742306,0.21235277,28056.0,28054.0,0.0652]
[1680453742307,0.16990242,28056.0,28054.0,0.0652]
[1680453742507,0.16990242,28056.0,28055.0,0.0624]
[1680453743804,0.16990242,28056.0,28055.0,0.3631]
[1680453744017,0.17290242,28056.0,28055.0,0.3631]
[1680453744608,0.17290242,28056.0,28055.0,0.4255]
[1680453744609,0.003,28056.0,28055.0,0.4255]
[1680453745209,0.16990242,28059.0,28056.0,0.05]
[1680453745515,0.16990242,28060.0,28058.0,0.4252]
[1680453745711,0.16990242,28060.0,28059.0,0.1744]
[1680453746111,0.16990242,28061.0,28059.0,0.1744]
[1680453746312,0.16990242,28061.0,28060.0,0.0624]
[1680453746511,0.21235277,28062.0,28060.0,0.0624]
[1680453746714,0.21235277,28062.0,28061.0,0.0624]
[1680453746908,0.21213951,28062.0,28061.0,0.0624]
[1680453747108,0.21213951,28062.0,28058.0,0.0644]
[1680453747304,0.21213951,28059.0,28058.0,0.0644]
[1680453747508,0.21213951,28059.0,28058.0,0.0624]
[1680453748018,0.21213951,28059.0,28058.0,0.0644]
[1680453748609,0.001,28059.0,28058.0,0.001]
[1680453748802,0.3017,28059.0,28058.0,0.001]
[1680453749113,0.3517,28059.0,28058.0,0.001]
[1680453749514,0.3017,28059.0,28058.0,0.001]
[1680453749911,0.51379702,28059.0,28058.0,0.001]
[1680453750109,0.21309702,28059.0,28058.0,0.001]
[1680453750308,0.21309702,28059.0,28058.0,0.3637]
[1680453750515,0.001,28059.0,28058.0,0.3637]
[1680453751108,0.015,28059.0,28058.0,0.3647]
[1680453751310,0.18468801,28059.0,28058.0,0.4266]
[1680453751515,0.18368801,28059.0,28058.0,0.4256]
[1680453752215,0.014,28059.0,28058.0,0.4256]
[1680453752812,0.16969777,28062.0,28059.0,0.05]
[1680453753016,0.16969777,28064.0,28061.0,0.6619]
[1680453753216,0.16969777,28064.0,28063.0,0.1248]
[1680453753420,0.16969777,28064.0,28063.0,0.1743]
[1680453753817,0.16969777,28065.0,28063.0,0.1743]
[1680453754026,0.16969777,28065.0,28064.0,0.1245]
[1680453754224,0.16969777,28066.0,28064.0,0.1245]
[1680453754414,0.21209702,28068.0,28063.0,0.051]
[1680453754415,1.44309777,28070.0,28065.0,0.425]
[1680453754616,1.44309777,28070.0,28069.0,0.0624]
[1680453755121,1.2734,28070.0,28069.0,0.0624]
[1680453756423,1.2734,28070.0,28069.0,0.1243]
[1680453756723,1.2754,28070.0,28069.0,0.14714428]
[1680453757118,0.002,28070.0,28069.0,0.44784428]
[1680453759223,0.05388664,28073.0,28070.0,0.2371]
[1680453759526,0.16969777,28073.0,28072.0,0.3631]
[1680453760125,0.002,28073.0,28072.0,0.3631]
[1680453760524,0.16969777,28074.0,28072.0,0.3631]
[1680453760724,0.002,28073.0,28072.0,0.3027]
[1680453760924,0.002,28073.0,28072.0,0.0643]
[1680453761136,0.22180104,28075.0,28073.0,0.05]
[1680453761334,1.44309777,28077.0,28073.0,0.05]
[1680453761625,1.44309777,28077.0,28076.0,0.1244]
[1680453761626,0.22301389,28077.0,28076.0,0.1244]
[1680453761831,0.05331612,28077.0,28076.0,0.1244]
[1680453762025,0.25456741,28078.0,28076.0,0.062]
[1680453762220,0.25456741,28078.0,28077.0,0.0624]
[1680453762422,0.36265886,28079.0,28077.0,0.0624]
[1680453762730,0.25456741,28080.0,28078.0,0.3631]
[1680453762922,0.25456741,28080.0,28078.0,0.03013081]
[1680453763124,0.32385418,28079.0,28078.0,0.00513081]
[1680453763326,0.57842159,28079.0,28077.0,0.002]
[1680453763521,0.56214403,28078.0,28077.0,0.002]
[1680453763723,0.56214403,28078.0,28076.0,0.0624]
[1680453764132,0.51214403,28078.0,28070.0,0.4131]
[1680453764427,0.05,28076.0,28073.0,0.0624]
[1680453764826,0.16905435,28076.0,28073.0,0.0624]
[1680453765435,0.05,28075.0,28073.0,0.0644]
[1680453765634,0.21905435,28075.0,28073.0,0.0644]
[1680453765835,0.53165435,28075.0,28073.0,0.002]
[1680453766030,0.05,28074.0,28073.0,0.002]
[1680453769136,0.4126,28075.0,28073.0,0.002]
[1680453769435,0.05,28074.0,28073.0,0.002]
[1680453769735,0.26144403,28074.0,28073.0,0.002]
[1680453769933,0.26144403,28074.0,28070.0,0.0624]
[1680453770134,0.26144403,28074.0,28073.0,0.002]
[1680453770333,0.21144403,28074.0,28073.0,0.002]
[1680453770531,0.62404403,28075.0,28073.0,0.002]
[1680453771735,0.57404403,28075.0,28073.0,0.002]
[1680453772842,0.51214403,28075.0,28074.0,0.0624]
[1680453773141,0.25456741,28077.0,28073.0,0.002]
[1680453773142,0.27334403,28076.0,28073.0,0.002]
[1680453773340,0.16893511,28074.0,28073.0,0.002]
[1680453773537,0.16893511,28075.0,28073.0,0.1265]
[1680453773838,0.25456741,28078.0,28074.0,0.062]
[1680453773839,0.16893511,28076.0,28074.0,0.062]
[1680453774444,0.16893511,28076.0,28074.0,0.064]
[1680453775237,0.16893511,28076.0,28074.0,0.066]
[1680453775636,0.16893511,28077.0,28074.0,0.066]
[1680453775840,0.16893511,28077.0,28076.0,0.062]
[1680453776435,0.21144403,28078.0,28076.0,0.062]
[1680453776636,0.21144403,28078.0,28077.0,0.0624]
[1680453776842,1.2734,28079.0,28077.0,0.0624]
[1680453777142,1.2734,28079.0,28078.0,0.0624]
[1680453777740,0.16132524,28080.0,28078.0,0.1245]
[1680453778044,0.49133651,28083.0,28079.0,0.062]
[1680453778243,0.16893651,28083.0,28079.0,0.062]
[1680453778542,0.0619,28081.0,28077.0,0.0624]
[1680453779041,0.0619,28081.0,28078.0,0.02522382]
[1680453779340,0.16893651,28083.0,28079.0,0.062]
[1680453780234,0.16893651,28083.0,28082.0,0.0624]
[1680453780432,0.23083651,28083.0,28079.0,0.002]
[1680453780640,0.05,28082.0,28080.0,0.0618]
[1680453781141,0.3631,28081.0,28079.0,0.002]
[1680453781341,0.4131,28080.0,28073.0,0.0622]
[1680453781549,0.0618,28077.0,28073.0,0.0622]
[1680453781840,0.0618,28077.0,28074.0,0.02322246]
[1680453782041,0.3507,28080.0,28076.0,0.0624]
[1680453782242,0.3007,28080.0,28076.0,0.0624]
[1680453782444,0.05,28079.0,28076.0,0.0624]
[1680453782642,0.002,28077.0,28076.0,0.0624]
[1680453783038,0.3507,28080.0,28076.0,0.0624]
[1680453783340,0.3507,28080.0,28076.0,0.0644]
[1680453783341,0.3527,28080.0,28076.0,0.0644]
[1680453783534,0.0624,28077.0,28072.0,0.1124]
[1680453783735,0.0644,28077.0,28076.0,0.002]
[1680453784232,0.002,28077.0,28076.0,0.002]
[1680453784640,0.21344403,28077.0,28076.0,0.002]
[1680453784834,0.21144403,28077.0,28076.0,0.002]
[1680453785236,0.21144403,28077.0,28075.0,0.0618]
[1680453785440,0.21344403,28077.0,28076.0,0.002]
[1680453786545,0.51414403,28077.0,28076.0,0.002]
[1680453786747,0.57594403,28077.0,28076.0,0.002]
[1680453787247,0.51414403,28077.0,28076.0,0.002]
[1680453787842,0.57604403,28077.0,28076.0,0.002]
[1680453788244,0.83061144,28077.0,28076.0,0.002]
[1680453788444,0.61916741,28077.0,28076.0,0.002]
[1680453791142,0.25656741,28077.0,28076.0,0.0644]
[1680453791544,0.002,28077.0,28076.0,0.08761762]
[1680453793346,0.002,28077.0,28076.0,0.02521762]
[1680453794054,0.3651,28077.0,28076.0,0.02521762]
[1680453794260,0.3027,28077.0,28076.0,0.02521762]
[1680453794446,0.4719007,28077.0,28076.0,0.02521762]
[1680453795347,0.3027,28077.0,28076.0,0.02521762]
[1680453796254,0.51420087,28077.0,28076.0,0.02521762]
[1680453797549,0.3027,28077.0,28076.0,0.02521762]
[1680453797744,0.51453679,28077.0,28076.0,0.02521762]
[1680453798149,0.3027,28077.0,28076.0,0.02521762]
[1680453798352,0.55726741,28077.0,28076.0,0.02521762]
[1680453799353,0.3027,28077.0,28076.0,0.02521762]
[1680453807351,0.59988907,28077.0,28076.0,0.02521762]
[1680453807858,0.3027,28077.0,28076.0,0.0074171]
[1680453808058,0.3027,28077.0,28076.0,0.02123436]
[1680453808356,0.59988907,28077.0,28074.0,0.0623]
[1680453808557,0.25474533,28076.0,28074.0,0.0623]
[1680453809754,0.25974533,28076.0,28074.0,0.0643]
[1680453812758,0.26274533,28076.0,28074.0,0.0663]
[1680453814658,0.008,28076.0,28074.0,0.0663]
[1680453815452,0.008,28076.0,28075.0,0.02123067]
[1680453815653,0.003,28076.0,28075.0,0.02123067]
[1680453815856,0.003,28076.0,28074.0,0.0643]
[1680453816257,0.003,28076.0,28075.0,0.02123026]
[1680453816456,0.003,28076.0,28074.0,0.0643]
[1680453817856,0.3007,28077.0,28074.0,0.0623]
[1680453818051,0.003,28076.0,28075.0,0.002]
[1680453818255,0.05,28076.0,28074.0,0.0623]
[1680453818454,0.003,28076.0,28074.0,0.0643]
[1680453818656,0.053,28076.0,28074.0,0.0643]
[1680453818857,0.003,28076.0,28075.0,0.002]
[1680453819259,0.3007,28077.0,28074.0,0.0623]
[1680453819464,0.003,28076.0,28074.0,0.0643]
[1680453819768,0.05,28076.0,28074.0,0.0623]
[1680453819956,0.003,28076.0,28075.0,0.002]
[1680453820964,0.003,28076.0,28074.0,0.0643]
[1680453821264,0.053,28076.0,28074.0,0.0643]
[1680453821463,0.003,28076.0,28074.0,0.0643]
[1680453821767,0.25497104,28075.0,28074.0,0.0643]
[1680453821962,0.25497104,28075.0,28074.0,0.0623]
[1680453822264,0.25497104,28075.0,28074.0,0.0643]
[1680453823966,0.25797104,28075.0,28074.0,0.0643]
[1680453824759,0.25797104,28075.0,28074.0,0.0623]
[1680453825060,0.25797104,28075.0,28074.0,0.0643]
[1680453826069,0.25797104,28075.0,28074.0,0.0638]
[1680453826265,0.25797104,28075.0,28074.0,0.08502529]
[1680453826969,0.21556856,28075.0,28074.0,0.13502529]
[1680453827356,0.21256856,28075.0,28074.0,0.13302529]
[1680453827563,0.21556856,28075.0,28074.0,0.43472529]
[1680453828164,0.21256856,28075.0,28074.0,0.43372529]
[1680453828367,0.21556856,28075.0,28074.0,0.43372529]
[1680453828672,0.21256856,28075.0,28074.0,0.43372529]
[1680453829059,0.21256856,28076.0,28074.0,0.43372529]
[1680453829259,0.21256856,28076.0,28075.0,0.0623]
[1680453829569,0.21256856,28076.0,28075.0,0.1123]
[1680453829766,0.21256856,28077.0,28075.0,0.1123]
[1680453830772,0.003,28076.0,28075.0,0.1123]
[1680453830968,0.21256856,28077.0,28075.0,0.1123]
[1680453831173,0.21556856,28077.0,28075.0,0.1133]
[1680453831472,0.21256856,28077.0,28075.0,0.1123]
[1680453831662,0.003,28076.0,28075.0,0.1123]
[1680453832266,0.003,28076.0,28074.0,0.43422529]
[1680453832464,0.003,28076.0,28074.0,0.13352529]
[1680453832465,0.1699823,28075.0,28074.0,0.13352529]
[1680453832665,0.1699752,28075.0,28074.0,0.13352529]
[1680453832871,0.21256856,28076.0,28074.0,0.08352529]
[1680453833071,0.21556856,28076.0,28074.0,0.08352529]
[1680453833574,0.21256856,28076.0,28074.0,0.08352529]
[1680453834075,0.21556856,28076.0,28074.0,0.08352529]
[1680453834576,0.16995466,28075.0,28074.0,0.08352529]
[1680453836973,0.0623,28079.0,28074.0,0.08352529]
[1680453837175,0.29746621,28075.0,28074.0,0.08352529]
[1680453841585,0.29746621,28076.0,28074.0,0.08352529]
[1680453842085,0.29746621,28076.0,28075.0,0.0619]
[1680453842488,0.29746621,28076.0,28075.0,0.08311725]
[1680453842882,0.003,28076.0,28075.0,0.08311725]
[1680453844279,0.21548654,28076.0,28075.0,0.08311725]
[1680453850990,0.21248654,28076.0,28075.0,0.08911725]
[1680453851190,0.21248654,28077.0,28075.0,0.08911725]
[1680453852190,0.29748115,28076.0,28075.0,0.02721725]
[1680453852494,0.29748115,28076.0,28075.0,0.12051725]
[1680453853186,0.29748115,28076.0,28075.0,0.17051725]
[1680453853583,0.29748115,28077.0,28075.0,0.17051725]
[1680453853785,0.29748115,28077.0,28076.0,0.0995]
[1680453853985,0.29748115,28077.0,28076.0,0.12071155]
[1680453854182,0.29748115,28077.0,28076.0,0.22041155]
[1680453854691,0.30048115,28077.0,28076.0,0.22041155]
[1680453856487,0.003,28077.0,28076.0,0.22041155]
[1680453857388,0.05459197,28081.0,28077.0,0.05]
[1680453857587,0.05,28086.0,28080.0,0.5]
[1680453857891,0.05,28086.0,28084.0,0.0498]
[1680453858084,2.59146134,28088.0,28084.0,0.0498]
[1680453858085,2.03938021,28088.0,28084.0,0.0498]
[1680453858388,1.67956379,28088.0,28084.0,0.0498]
[1680453858583,0.001,28086.0,28084.0,0.0498]
[1680453858779,0.001,28086.0,28085.0,0.12855064]
[1680453860590,0.16979384,28087.0,28085.0,0.37855064]
[1680453860794,0.16979384,28087.0,28086.0,0.5996]
[1680453861290,0.16979384,28088.0,28087.0,0.05]
[1680453861486,0.16979384,28088.0,28087.0,0.6494]
[1680453862088,0.16979384,28089.0,28087.0,0.4751]
[1680453862289,0.16979384,28089.0,28088.0,0.1243]
[1680453862497,0.21227411,28090.0,28088.0,0.1243]
[1680453862803,0.05302746,28090.0,28089.0,0.0621]
[1680453863096,0.16950505,28090.0,28089.0,0.09891176]
[1680453864591,0.22243506,28091.0,28089.0,0.21121176]
[1680453864895,0.21227411,28093.0,28090.0,0.4253]
[1680453864896,0.16950505,28092.0,28090.0,0.4253]
[1680453865092,0.27786776,28093.0,28091.0,0.1246]
[1680453865296,0.27786776,28093.0,28092.0,0.0621]
[1680453865297,0.16950505,28093.0,28092.0,0.0621]
[1680453866292,0.16950505,28093.0,28092.0,0.0626]
[1680453866593,0.21227411,28095.0,28092.0,0.1249]
[1680453866594,0.16950505,28094.0,28092.0,0.1249]
[1680453866902,0.16950505,28094.0,28093.0,0.124]
[1680453866903,0.21227411,28094.0,28093.0,0.124]
[1680453867096,0.3815602,28094.0,28093.0,1.06137065]
[1680453867288,0.05287115,28096.0,28094.0,0.39997065]
[1680453867493,0.46633835,28100.0,28097.0,0.2367]
[1680453867695,0.21227411,28101.0,28099.0,0.1244]
[1680453867994,0.21227411,28102.0,28100.0,0.124]
[1680453868300,0.21227411,28103.0,28101.0,0.0623]
[1680453868496,0.05,28102.0,28099.0,0.05]
[1680453868693,0.05,28102.0,28101.0,0.0621]
[1680453868888,0.21227411,28103.0,28101.0,0.0621]
[1680453869187,0.21227411,28103.0,28102.0,0.062]
[1680453869593,0.26227411,28103.0,28102.0,0.062]
[1680453869996,0.21227411,28103.0,28102.0,0.062]
[1680453870195,0.35887799,28104.0,28102.0,0.062]
[1680453870392,0.10481375,28104.0,28102.0,0.0619]
[1680453870596,0.56603361,28105.0,28102.0,0.0619]
[1680453871096,0.56603361,28105.0,28104.0,0.0623]
[1680453871298,0.3537595,28105.0,28104.0,0.0623]
[1680453871999,0.3537595,28105.0,28104.0,0.0643]
[1680453872500,0.45999076,28105.0,28104.0,0.0643]
[1680453873102,0.45999076,28105.0,28104.0,0.1266]
[1680453873399,0.3537595,28105.0,28104.0,0.17395717]
[1680453873604,0.0530595,28105.0,28104.0,0.17395717]
[1680453873902,0.21227411,28109.0,28104.0,0.47465717]
[1680453874205,0.6014,28105.0,28104.0,0.04935717]
[1680453874408,0.00868821,28103.0,28099.0,0.86692524]
[1680453874597,0.00868821,28103.0,28096.0,1.22952524]
[1680453874598,0.0621,28101.0,28096.0,1.22952524]
[1680453875204,0.0621,28101.0,28096.0,0.92882524]
[1680453875505,0.0623,28099.0,28096.0,0.002]
[1680453876005,0.05,28098.0,28096.0,0.002]
[1680453876200,0.3007,28099.0,28097.0,0.0619]
[1680453876600,0.002,28099.0,28097.0,0.0619]
[1680453876997,0.002,28098.0,28097.0,0.0619]
[1680453877296,0.002,28098.0,28096.0,0.0618]
[1680453877498,0.002,28099.0,28097.0,0.002]
[1680453877902,0.002,28098.0,28097.0,0.002]
[1680453878102,0.002,28098.0,28097.0,0.0643]
[1680453879398,0.16854544,28099.0,28097.0,0.0623]
[1680453879597,0.17054544,28099.0,28098.0,0.0619]
[1680453879801,0.16854544,28099.0,28098.0,0.0619]
[1680453879998,0.23064544,28099.0,28097.0,0.002]
[1680453880200,0.23064544,28099.0,28098.0,0.86692524]
[1680453880498,0.17054544,28099.0,28098.0,0.93092524]
[1680453880899,0.23284544,28099.0,28098.0,0.86892524]
[1680453881106,0.002,28099.0,28098.0,0.86892524]
[1680453881304,0.002,28099.0,28098.0,0.92922524]
[1680453881701,0.002,28099.0,28098.0,0.0623]
[1680453881903,0.002,28099.0,28097.0,0.002]
[1680453882103,0.002,28099.0,28098.0,0.96324537]
[1680453882601,0.002,28099.0,28098.0,0.96524537]
[1680453885010,0.002,28099.0,28098.0,0.90334537]
[1680453886711,0.002,28099.0,28098.0,0.03642013]
[1680453889120,0.3027,28099.0,28098.0,0.03459532]
[1680453889616,0.53354544,28099.0,28094.0,0.05]
[1680453889820,0.0621,28096.0,28095.0,0.03011448]
[1680453890221,0.83384544,28099.0,28095.0,0.03011448]
[1680453890421,0.363,28096.0,28091.0,0.97922524]
[1680453891326,0.3007,28093.0,28091.0,0.97922524]
[1680453892020,0.3007,28093.0,28091.0,0.98022524]
[1680453892227,0.3007,28093.0,28092.0,0.062]
[1680453892417,0.3217,28093.0,28092.0,0.062]
[1680453893019,0.3187,28093.0,28092.0,0.062]
[1680453894120,0.3187,28093.0,28092.0,0.063]
[1680453894519,0.3007,28093.0,28092.0,0.063]
[1680453894729,0.3187,28093.0,28092.0,0.001]
[1680453895925,0.381,28093.0,28092.0,0.001]
[1680453896129,0.54954544,28093.0,28092.0,0.001]
[1680453896429,0.602491,28093.0,28092.0,0.001]
[1680453896630,0.602491,28093.0,28092.0,0.0130502]
[1680453896835,0.43394556,28093.0,28092.0,0.001]
[1680453897630,0.37164556,28093.0,28092.0,0.001]
[1680453898425,0.37164556,28093.0,28092.0,0.01304943]
[1680453898627,0.37164556,28093.0,28092.0,0.001]
[1680453898822,0.37164556,28093.0,28089.0,0.0085924]
[1680453899028,0.3007,28090.0,28089.0,0.0085924]
[1680453900031,0.3007,28090.0,28089.0,0.0095924]
[1680453900532,0.3007,28090.0,28089.0,0.0105924]
[1680453901025,0.3227,28090.0,28089.0,0.0095924]
[1680453902035,0.3227,28090.0,28089.0,0.001]
[1680453904623,0.53335521,28090.0,28089.0,0.001]
[1680453905131,0.53454956,28090.0,28089.0,0.001]
[1680453905336,0.23384956,28090.0,28089.0,0.86792524]
[1680453905535,0.23384956,28090.0,28089.0,0.93022524]
[1680453905536,0.0917074,28090.0,28089.0,0.93022524]
[1680453905837,0.26481389,28093.0,28092.0,0.86692524]
[1680453905838,0.05294556,28093.0,28092.0,0.86692524]
[1680453906132,0.21186833,28094.0,28093.0,0.05]
[1680453906438,0.316931,28095.0,28093.0,0.1123]
[1680453907031,0.002,28094.0,28093.0,0.1143]
[1680453907631,0.318931,28095.0,28093.0,0.1143]
[1680453908631,0.318931,28095.0,28094.0,0.0618]
[1680453908828,0.316931,28095.0,28094.0,0.0618]
[1680453909032,0.316931,28095.0,28093.0,0.1133]
[1680453909234,0.21209712,28094.0,28093.0,0.1123]
[1680453909430,0.21209712,28094.0,28093.0,0.1133]
[1680453909736,0.21209712,28095.0,28093.0,0.413]
[1680453909939,0.21409712,28095.0,28094.0,0.0628]
[1680453910334,0.21209712,28095.0,28094.0,0.0618]
[1680453910537,0.21209712,28095.0,28094.0,0.07186782]
[1680453911738,0.21409712,28095.0,28094.0,0.07186782]
[1680453912041,0.002,28095.0,28094.0,0.07186782]
[1680453913744,0.002,28095.0,28094.0,0.01006782]
[1680453915044,0.002,28095.0,28091.0,0.062]
[1680453915341,0.21221009,28094.0,28091.0,0.062]
[1680453915545,0.32451009,28093.0,28089.0,0.86692524]
[1680453915934,0.21221009,28092.0,28089.0,0.86692524]
[1680453916333,0.21221009,28092.0,28088.0,0.1118]
[1680453917440,0.21221009,28092.0,28089.0,0.86692524]
[1680453917635,0.16975532,28090.0,28089.0,0.86692524]
[1680453918046,0.16975532,28090.0,28089.0,0.86792524]
[1680453918541,0.17175532,28090.0,28089.0,0.86892524]
[1680453919543,0.002,28090.0,28089.0,0.86892524]
[1680453920239,0.5554744,28090.0,28089.0,0.86892524]
[1680453921044,0.3645,28090.0,28089.0,0.86892524]
[1680453921440,0.41793174,28090.0,28089.0,0.86892524]
[1680453921848,0.67261376,28090.0,28089.0,0.86892524]
[1680453922050,0.60881376,28090.0,28089.0,0.86692524]
[1680453922246,0.61081376,28090.0,28089.0,0.86892524]
[1680453922647,0.35613174,28090.0,28089.0,0.86892524]
[1680453923549,0.31009135,28090.0,28089.0,0.86892524]
[1680453924641,0.31009135,28090.0,28089.0,0.93122524]
[1680453925643,0.31009135,28090.0,28089.0,0.93871567]
[1680453925844,0.30809135,28090.0,28089.0,0.93671567]
[1680453926045,0.31009135,28090.0,28089.0,0.93871567]
[1680453926647,0.05543174,28090.0,28089.0,0.93871567]
[1680453927839,0.05543174,28090.0,28089.0,1.23841567]
[1680453928146,0.05543174,28090.0,28089.0,1.23741567]
[1680453929948,0.05543174,28090.0,28089.0,1.29971567]
[1680453931350,0.05343174,28090.0,28089.0,1.29971567]
[1680453931552,0.16977537,28094.0,28089.0,1.31071567]
[1680453931750,0.16977537,28094.0,28093.0,0.0623]
[1680453932051,0.16977537,28094.0,28093.0,0.0622]
[1680453932251,0.16977537,28094.0,28093.0,0.92912524]
[1680453932552,0.17177537,28094.0,28093.0,0.92912524]
[1680453933053,0.002,28094.0,28093.0,0.92912524]
[1680453933559,0.002,28094.0,28093.0,0.93012524]
[1680453934551,0.0543989,28094.0,28093.0,0.93012524]
[1680453934751,0.26680571,28094.0,28093.0,0.93112524]
[1680453935250,0.0543989,28094.0,28093.0,0.93112524]
[1680453936850,0.0543989,28094.0,28093.0,0.93012524]
[1680453938551,0.26684308,28094.0,28093.0,0.93012524]
[1680453940654,0.0543989,28094.0,28093.0,1.23840883]
[1680453941558,0.22436395,28094.0,28093.0,1.23840883]
[1680453941856,0.0543989,28094.0,28093.0,1.23840883]
[1680453942357,0.30935815,28094.0,28093.0,1.23840883]
[1680453942854,0.0543989,28094.0,28093.0,1.23840883]
[1680453943061,0.30935792,28094.0,28093.0,1.23840883]
[1680453943653,0.0543989,28094.0,28093.0,1.23840883]
[1680453944257,0.26684927,28094.0,28093.0,1.23840883]
[1680453944856,0.0543989,28094.0,28093.0,1.23840883]
[1680453945159,0.52181015,28094.0,28093.0,1.23840883]
[1680453945455,0.52181015,28094.0,28093.0,1.30040883]
[1680453945456,0.0543989,28094.0,28093.0,1.30040883]
[1680453946852,0.30935792,28094.0,28093.0,1.30040883]
[1680453949559,0.0543989,28094.0,28093.0,1.30040883]
[1680453952160,0.0543989,28094.0,28093.0,1.23810883]
[1680453955761,0.0543989,28094.0,28093.0,1.2465596]
[1680453957168,0.22427649,28094.0,28093.0,1.24639819]
[1680453957465,0.0543989,28094.0,28093.0,1.24639819]
[1680453959868,0.0543989,28094.0,28093.0,0.94569819]
[1680453960868,0.0543989,28094.0,28093.0,0.88369819]
[1680453961175,0.1166989,28094.0,28093.0,0.88369819]
[1680453961372,0.1166989,28094.0,28093.0,0.85715894]
[1680453961566,0.1166989,28094.0,28093.0,0.80463646]
[1680453961767,0.1666989,28094.0,28093.0,0.80463646]
[1680453961966,0.41163178,28094.0,28093.0,0.80463646]
[1680453962369,0.41163178,28094.0,28093.0,0.80253646]
[1680453964470,0.1166989,28094.0,28093.0,0.80253646]
[1680453965572,0.1166989,28094.0,28093.0,0.67344431]
[1680453965781,0.0623,28093.0,28090.0,0.57649354]
[1680453965974,0.53285671,28091.0,28090.0,0.57649354]
[1680453966978,0.53284063,28091.0,28090.0,0.57649354]
[1680453967172,0.53284063,28091.0,28090.0,0.58749354]
[1680453967380,0.363,28091.0,28090.0,0.58749354]
[1680453967579,0.363,28091.0,28090.0,0.011]
[1680453968181,0.365,28091.0,28090.0,0.002]
[1680453968373,0.365,28091.0,28086.0,0.1123]
[1680453968573,0.16984235,28090.0,28086.0,0.1123]
[1680453970290,0.16984235,28089.0,28087.0,0.052]
[1680453970676,0.3007,28088.0,28087.0,0.002]
[1680453970874,0.3007,28088.0,28086.0,0.0104]
[1680453971179,0.47054235,28088.0,28086.0,0.0104]
[1680453971479,0.3007,28088.0,28087.0,0.002]
[1680453971876,0.47647551,28088.0,28086.0,0.0124]
[1680453972069,0.47647551,28088.0,28086.0,0.002]
[1680453972891,0.00183099,28087.0,28085.0,0.00850001]
[1680453973080,0.00183099,28087.0,28084.0,0.1012]
[1680453973271,0.1716065,28087.0,28084.0,0.0922]
[1680453973478,0.3007,28085.0,28084.0,0.0117]
[1680453973678,0.3007,28085.0,28084.0,0.0619]
[1680453973977,0.3007,28085.0,28084.0,0.0629]
[1680453974482,0.3007,28085.0,28084.0,0.0649]
[1680453975386,0.3007,28085.0,28084.0,0.0124]
[1680453975683,0.3007,28085.0,28081.0,0.1123]
[1680453976585,0.3127,28085.0,28084.0,0.002]
[1680453977178,0.3127,28085.0,28081.0,0.1143]
[1680453977379,0.3127,28085.0,28081.0,0.1123]
[1680453977582,0.3629,28082.0,28080.0,0.05]
[1680453977789,0.3629,28082.0,28077.0,0.05]
[1680453978082,0.0621,28083.0,28078.0,0.0623]
[1680453978385,0.0621,28083.0,28081.0,0.002]
[1680453978883,0.0623,28080.0,28077.0,0.62649354]
[1680453979083,0.0623,28078.0,28077.0,0.62649354]
[1680453979478,0.0623,28078.0,28077.0,0.62749354]
[1680453979679,0.0623,28078.0,28077.0,0.051]
[1680453979882,0.0633,28078.0,28077.0,0.64249354]
[1680453981086,0.06308518,28078.0,28077.0,0.64249354]
[1680453982084,0.001,28078.0,28077.0,0.64249354]
[1680453983686,0.001,28078.0,28077.0,0.59249354]
[1680453985892,0.001,28078.0,28077.0,0.57849354]
[1680453985893,0.03313185,28078.0,28077.0,0.57849354]
[1680453988097,0.03313185,28078.0,28077.0,0.53859354]
[1680453988790,0.03313185,28078.0,28077.0,0.58859354]